Cogmind - Beta 15 @@@ ROGUE MODE // 2025.05.31 @ 18:43:20 Player: Polariusz Result: Destroyed by SR-HB4(R) with Subdweller Laser Performance ------------- Evolutions (0) 0 Regions Visited (2) 400 Robots Destroyed (25) 125 Value Destroyed (811) 811 Prototype IDs (3) 60 Alien Tech Used (0) 0 Bonus (0) 0 TOTAL SCORE: 1396 Bonus ------- None Cogmind --------- Core Integrity 0/250 Matter 300/300 Energy 119/125 System Corruption 0% Temperature Cool (6) Movement Treading (240) Ox1 Location -10/Subcaves Parts ------- > --- POWER (1) -------- Light Ion Engine > --- PROPULSION (2) --- Light Treads > --- UTILITY (2) ------ Improved Heat Sink Large Storage Unit > --- WEAPON (2) ------- Beam Cannon Beam Cannon > --- INVENTORY (15) --- Light Treads Light Treads Light Treads Sensor Array Signal Interpreter Light Armor Plating Makeshift Light Armor Plating Subdweller Laser Subdweller Laser Battle Rifle Battle Rifle Heavy Battle Rifle Grenade Launcher Hammer Peak State ------------ > --- POWER ------------ Light Ion Engine > --- PROPULSION ------- Light Treads Light Treads > --- UTILITY ---------- Large Storage Unit Makeshift System Restoration Module > --- WEAPON ----------- Beam Cannon Beam Cannon > --- INVENTORY -------- Light Treads Light Treads Light Treads Light Treads Heat Sink Improved Heat Sink Sensor Array Signal Interpreter Light Armor Plating Subdweller Laser Subdweller Laser Subdweller Laser Beam Cannon Grenade Launcher Hammer [Rating: 12] Favorites ----------- Power Ion Engine Engine Ion Engine Propulsion Light Treads Treads Light Treads Wheel Compact Wheel Utility Heat Sink Device Heat Sink Storage Small Storage Unit Weapon Beam Cannon Energy Gun EM Pulse Gun Energy Cannon Beam Cannon Ballistic Cannon Light Cannon Impact Weapon Hammer Slashing Weapon Mining Claw Build | -11 -10 -10 ------- Run | Yrd Mat Sub Slots Evolved . | . . . Power . | . . . Propulsion . | . . . Utility . | . . . Weapon . | . . . Parts Attached 22 | 6 10 6 Power 3 | 1 1 1 Engine 3 | 1 1 1 Core . | . . . Reactor . | . . . Propulsion 6 | 2 2 2 Treads 4 | . 2 2 Leg . | . . . Wheel 2 | 2 . . Hover . | . . . Flight . | . . . Utility 5 | 1 2 2 Device 3 | . 1 2 Storage 2 | 1 1 . Processor . | . . . Hackware . | . . . Protection . | . . . Artifact . | . . . Weapon 8 | 2 5 1 Energy Gun 2 | 2 . . Energy Cannon 3 | . 3 . Ballistic Gun . | . . . Ballistic Cannon 1 | . 1 . Launcher . | . . . Special Weapon . | . . . Impact Weapon 1 | . . 1 Slashing Weapon 1 | . 1 . Piercing Weapon . | . . . Special Melee Weapon . | . . . Unidentified Prototypes . | . . . Parts Lost 7 | . 3 4 Power 2 | . 1 1 Propulsion 4 | . 2 2 Utility . | . . . Weapon 1 | . . 1 Highest Loss Streak 3 | . 3 2 To Critical Strikes . | . . . Average Backups 9 | 2 7 13 Power . | 1 . . Propulsion 2 | . 2 3 Utility 3 | . 2 3 Weapon 3 | . 2 5 Tool/Special . | . . . Unused Backups 14 | . . 14 Power . | . . . Propulsion 3 | . . 3 Utility 4 | . . 4 Weapon 7 | . . 7 Tool/Special . | . . . Average Slot Usage (%) 95 | . 92 99 Engine 12 | . 11 14 Treads 25 | . 24 27 Wheel 1 | . 2 . Device 12 | . 11 14 Storage 14 | . 14 14 Energy Gun 2 | . 3 . Energy Cannon 24 | . 22 27 Peak Build Rating 12 | 6 8 12 Average Rating 7 | 3 6 9 On Entrance 4 | . 6 8 Naked Turns . | . . . Heaviest Build 34 | 12 32 34 Greatest Support 40 | 26 40 40 Greatest Overweight (x) 3 | . 3 . Average Overweight (x) . | . . . Largest Inventory Capacity 15 | 8 15 15 Average Capacity 11 | 6 9 15 Most Carried 15 | 5 11 15 Average Carried 9 | 2 7 13 Final Capacity 15 | 8 15 15 Final Carried 14 | 3 11 14 Class Distribution -------------------- 100% | Mutant Dominant Class ---------------- Mutant | -10/Materials Mutant | -10/Subcaves Resources | -11 -10 -10 ----------- Run | Yrd Mat Sub Matter Collected 569 | 209 235 125 Remotely . | . . . Salvage Created 885 | . 628 257 Parts 52 | . 33 19 Haulers Intercepted . | . . . Recyclers Shooed . | . . . Parts Field Recycled . | . . . Retrieved Matter . | . . . Parts Self-Destructed 13 | . . 13 Prevented . | . . . Kills | -11 -10 -10 ------- Run | Yrd Mat Sub Combat Hostiles Destroyed 21 | . 15 6 Guns 1 | . 1 . Cannons 17 | . 12 5 AOE 1 | . 1 . Classes Destroyed 5 | . 4 1 Operator 1 | . 1 . Watcher 3 | . 3 . Swarmer 3 | . 3 . Grunt 12 | . 12 . Subdweller 6 | . . 6 Best Kill Streak 4 | . 4 2 Combat Bots Only 4 | . 4 2 Max Kills in Single Turn 1 | . 1 1 Gunslinging . | . . . Exploded 1 | . 1 . Melee . | . . . Uniques/NPCs Destroyed . | . . . Combat | -11 -10 -10 -------- Run | Yrd Mat Sub Hostile Shots Fired 135 | . 79 56 Missed 33 | . 17 16 Hits 102 | . 62 40 Projectile 102 | . 62 40 Critical Strikes 3 | . 2 1 Damage Taken 1526 | . 786 740 Core 270 | . 124 146 Absorbed by Shields . | . . . Regen/Repaired (Parts) 65 | . 65 . Core Remaining (%) 100 | 100 . . Volleys Fired 86 | . 63 23 Largest 2 | . 2 2 Hottest 120 | . 120 120 Shots Fired 162 | . 116 46 Gun 36 | . 36 . Cannon 126 | . 80 46 Launcher . | . . . Special . | . . . Kinetic 11 | . 11 . Thermal 115 | . 69 46 Explosive . | . . . Electromagnetic 36 | . 36 . Robot Hit Streak 12 | . 10 12 Robot Miss Streak 3 | . 3 1 Penetration Max . | . . . Secondary Targets . | . . . Shots Hit Robots 113 | . 74 39 Core Hits 31 | . 21 10 Critical Kills 1 | . . 1 Critical Parts Destroyed . | . . . Critical Strikes 2 | . 1 1 Meltdown 1 | . . 1 Corrupt 1 | . 1 . Melee Attacks 6 | . 1 5 Impact 5 | . . 5 Slashing 1 | . 1 . Piercing . | . . . Sneak Attacks . | . . . Combat Hostiles . | . . . Follow-up Attacks . | . . . Damage Inflicted 2028 | . 1325 703 Guns 326 | . 326 . Cannons 1621 | . 918 703 Explosions 81 | . 81 . Melee . | . . . Ramming . | . . . Kinetic 149 | . 149 . Thermal 1553 | . 850 703 Explosive . | . . . Electromagnetic 326 | . 326 . Impact . | . . . Slashing . | . . . Piercing . | . . . Highest Corruption 2 | . 2 2 Average Corruption 1 | . 2 1 Corruption Purged 2 | . . 2 Corruption Blocked . | . . . Effects 17 | . 9 8 Message Errors 4 | . 3 1 Matter Fused 5 | . 2 3 Heat Flow Errors 3 | . 2 1 Parts Fused 1 | . 1 . Data Loss (minor) 3 | . 1 2 Misfires 1 | . . 1 Overload Shots . | . . . Overflow Damage 69 | . 69 . Projectiles 45 | . 45 . Explosions 24 | . 24 . Melee . | . . . Knockbacks 5 | . 5 . Impact . | . . . Kinetic 5 | . 5 . Secondary . | . . . Self-Inflicted Damage 54 | . 54 . Shots 1 | . 1 . Rammed . | . . . Targets Rammed . | . . . Kicked . | . . . Crushed . | . . . Highest Temperature 276 | . 276 134 Average Temperature 108 | . 108 76 Received Heat Transfer 474 | . 378 96 Effects 1 | . 1 . Interference 1 | . 1 . Siege Activations . | . . . Martial Activations . | . . . Shielding Activations . | . . . Robots Disrupted . | . . . Combat Hostiles . | . . . Robots Corrupted 1 | . 1 . Combat Hostiles 1 | . 1 . Parts Fried . | . . . Impact Corruptions . | . . . Robots Melted 1 | . . 1 Combat Hostiles 1 | . . 1 Parts Melted 9 | . 4 5 Heat Transferred 3158 | . 1678 1480 Parts Sabotaged . | . . . Parts Stolen . | . . . Parts Stripped . | . . . Power Chain Reactions 1 | . 1 . Alert | -11 -10 -10 ------- Run | Yrd Mat Sub Maximum Alert Level . | . . . Low Security (%) 100 | 100 100 . Level 1 . | . . . Level 2 . | . . . Level 3 . | . . . Level 4 . | . . . Level 5 . | . . . High Security . | . . . Max Security . | . . . Peak Influence 120 | . 120 . Initial . | . . . Average 37 | . 38 . Influence Increases 484 | . 484 . Destroy 0b10 Robot/C 300 | . 300 . Destroy 0b10 Robot/NC 20 | . 20 . Destroy Leader 76 | . 76 . Successful Hack 22 | . 22 . Disable Machine 45 | . 45 . Destroy Structure 6 | . 6 . Lose Combat Pursuer 15 | . 15 . Influence Decreases 484 | . 463 21 Entered New Map 11 | . . 11 Time Decay 443 | . 433 10 Lost Part 30 | . 30 . Squads Dispatched 3 | . 3 . Investigation 2 | . 2 . Extermination . | . . . Reinforcement 1 | . 1 . Assault . | . . . Garrison . | . . . Intercept . | . . . Searches Triggered . | . . . Construction Impeded . | . . . Haulers Reinforced . | . . . Active Scanning Responses . | . . . Cargo Convoy Interrupts . | . . . Stealth | -11 -10 -10 --------- Run | Yrd Mat Sub Distress Signals . | . . . Communications Jammed . | . . . Distress Signals . | . . . Times Spotted 30 | . 20 10 Peak Tracking Total 5 | . 4 5 Tactical Retreats 1 | . 1 . Traps | -11 -10 -10 ------- Run | Yrd Mat Sub Traps Triggered 3 | . 3 . Indirectly . | . . . Trap Hack Attempts . | . . . Triggered . | . . . Disarmed . | . . . Reprogrammed . | . . . Reused . | . . . Traps Extracted . | . . . Installed . | . . . Triggered . | . . . Machines | -11 -10 -10 ---------- Run | Yrd Mat Sub Machines Disabled 3 | . 3 . Max in Single Turn 1 | . 1 . Machines Repaired . | . . . Machines Dismantled . | . . . Machines Sabotaged . | . . . Overloaded Fab Kills . | . . . Hacking | -11 -10 -10 --------- Run | Yrd Mat Sub Machines Accessed 8 | . 8 . Terminals 7 | . 7 . Fabricators . | . . . Repair Stations 1 | . 1 . Recycling Units . | . . . Scanalyzers . | . . . Garrison Access . | . . . Total Hacks 29 | . 29 . Successful 17 | . 17 . Failed 11 | . 11 . Catastrophic . | . . . Database Lockouts 1 | . 1 . Manual 24 | . 24 . Terminals 27 | . 27 . Fabricators . | . . . Repair Stations 2 | . 2 . Recycling Units . | . . . Scanalyzers . | . . . Garrison Access . | . . . Terminal Hacks 7 | . 7 . Prototype ID Bank 2 | . 2 . Terminal Index 1 | . 1 . Locate Traps 2 | . 2 . Surveillance Status 1 | . 1 . Patrol Status 1 | . 1 . Fabricator Hacks . | . . . Repair Station Hacks 2 | . 2 . Scan Component 1 | . 1 . Repair 1 | . 1 . Recycling Unit Hacks . | . . . Scanalyzer . | . . . Garrison Access Hacks . | . . . Unauthorized Hacks 8 | . 8 . Terminals 8 | . 8 . Track 3 | . 3 . Botnet 5 | . 5 . Fabricators . | . . . Repair Stations . | . . . Recycling Units . | . . . Scanalyzers . | . . . Garrison Access . | . . . Data Cores Recovered . | . . . Used . | . . . Hacking Detections 8 | . 8 . Full Trace Events 1 | . 1 . Feedback Events . | . . . Feedback Blocked . | . . . Robot Schematics Acquired . | . . . Robots Built . | . . . Authchips . | . . . Time . | . . . Total Robot Build Rating . | . . . Part Schematics Acquired . | . . . Parts Built . | . . . Authchips . | . . . Time . | . . . Total Part Build Rating . | . . . Parts Repaired 1 | . 1 . Time 26 | . 26 . Parts Recycled . | . . . Recycled Matter . | . . . Retrieved Matter . | . . . Retrieved Components . | . . . Parts Scanalyzed . | . . . Part Schematics Acquired . | . . . Parts Damaged . | . . . Bothacking | -11 -10 -10 ------------ Run | Yrd Mat Sub Used RIF Installer . | . . . Robots Hacked . | . . . Non-combat . | . . . Combat . | . . . Robot Hacks Applied . | . . . Relay Couplers Released . | . . . Fabnet Peak Effective % . | . . . Robots Rewired . | . . . Allies Hacked . | . . . Hacks Repelled . | . . . Allies | -11 -10 -10 -------- Run | Yrd Mat Sub Total Allies . | . . . Largest Group . | . . . Highest-Rated Group . | . . . Highest-Rated Ally . | . . . Total Orders . | . . . Ally Attacks . | . . . Total Damage . | . . . Kills . | . . . Allies Corrupted . | . . . Allies Melted . | . . . Intel | -11 -10 -10 ------- Run | Yrd Mat Sub Active Infowar (turns) . | . . . Robot Analysis Total . | . . . Derelict Logs Recovered 1 | . . 1 Drone Launches . | . . . Drone Recoveries . | . . . Exploration | -11 -10 -10 ------------- Run | Yrd Mat Sub Turns Passed 2708 | 46 1796 866 Spaces Moved 1347 | 44 872 431 Core 20 | 18 2 . Treads 1187 | . 756 431 Legs . | . . . Wheels 140 | 26 114 . Hover . | . . . Flight . | . . . Fastest Speed 50 | 50 90 160 Average Speed 151 | 73 150 160 Slowest Speed 200 | 100 200 160 Overloaded Moves . | . . . Propulsion Burnouts . | . . . Robots Hopped . | . . . Potential Cave-ins . | . . . Cave-ins Triggered . | . . . Exploration Rate (%) 43 | 3 100 28 Regions Visited 2 Branch Regions 1 Pre-discovered Areas 2 | . . 2 Known Exits Taken . | . . . Unknown Exits Taken 2 | 1 1 . Scrap Searched 7 | . . 7 Spaces Dug 1 | . 1 . Terrain Destroyed 3 | . 3 . Melee 1 | . 1 . Projectile . | . . . AOE 2 | . 2 . Terrain Rammed . | . . . Walls Destroyed . | . . . Machines Disabled . | . . . Actions | -11 -10 -10 --------- Run | Yrd Mat Sub Total 1843 | 56 1234 553 Wait 333 | . 265 68 Move 1345 | 43 871 431 Hop . | . . . Pick Up 33 | 7 16 10 Fast Attach 3 | 2 1 . Attach 15 | 4 7 4 Detach . | . . . Swap 12 | . 5 7 Drop 9 | . 5 4 Fire 86 | . 63 23 Melee 6 | . 1 5 Ram . | . . . Kick . | . . . Crush . | . . . Escape Stasis . | . . . Rewire 1 | . . 1 Trap . | . . . Miscellaneous . | . . . Route ------- -11/Scrapyard -10/Materials (discovered 5 exits: [*Mat x3] / [*Min] / [*Sub]) -10/Subcaves (discovered 1 exit: [*Mat]) History --------- Turn | Location | Event 2 | -11/Scrapyard | Met Revision 17 2 | -11/Scrapyard | Discovered new exit (range 16) 47 | -11/Scrapyard | Entered Materials 48 | -10/Materials | Met a group of wandering Federalists 75 | -10/Materials | Discovered new exit (range 5) 130 | -10/Materials | Discovered new exit (range 8) 249 | -10/Materials | Lost 3 parts (1p2n) 330 | -10/Materials | Build established: Mutant 470 | -10/Materials | Central database locked down 785 | -10/Materials | Discovered new exit (range 3) 892 | -10/Materials | Repaired Beam Cannon 1373 | -10/Materials | Discovered new exit (range 10) 1607 | -10/Materials | Discovered new exit (range 16) 1843 | -10/Materials | Entered Subcaves 1844 | -10/Subcaves | Continued accompanying wandering Federalists (6) 1844 | -10/Subcaves | Approached by a straggling Scientist 1882 | -10/Subcaves | Discovered new exit (range 11) 1927 | -10/Subcaves | Core integrity fell below 50% 1958 | -10/Subcaves | Lost 7 allies 2018 | -10/Subcaves | Learned location of Zion (-6) 2018 | -10/Subcaves | Met a Zionite searching for "candidates" 2525 | -10/Subcaves | A swath of the cavern ceiling suddenly collapsed 2526 | -10/Subcaves | Shifting Twisted Machinery released Hvy. Battle Rifle 2580 | -10/Subcaves | Shifting Twisted Machinery released Sub. Beam Cannon 2610 | -10/Subcaves | Core integrity fell below 20% 2662 | -10/Subcaves | Shifting Twisted Machinery released Sub. Machine Gun 2709 | -10/Subcaves | Destroyed by SR-HB4(R) with Subdweller Laser Last Messages --------------- Hvy. Battle Rifle falls loose from the Twisted Machinery. 02538_ Acquired Hvy. Battle Rifle. Sub. Beam Cannon falls loose from the Twisted Machinery. 02598_ Beam Cannon destroyed. 02601_ M4-ZCN(R) suffers critical hit (Meltdown). 02601_ Sub. Power Source melted. 02601_ Sub. Monowheel melted. 02625_ ZY-L4Z(R) affixes Scrap Shield Fragment to Scrap Shield. 02628_ Sub. Machine Gun melted. 02628_ ZY-L4Z(R) destroyed. 02631_ Acquired 43 matter. 02633_ Acquired 2 matter. Sub. Machine Gun falls loose from the Twisted Machinery. 02707_ Lgt. Treads destroyed. 02707_ 65-446(R) destroyed. Map ----- +----------------------------------------------------+ | ?????????????????????????????????????????????????? | | ?????????????????????????????????????????????????? | | ?????????????????????????????????????????????????? | | ?????????????????????????????????????????????????? | | ?????????????????????????????????????????????????? | | ?????????????????????????????????????????????????? | | ?????????????????????????????????????????????????? | | ????????????????????????????????? #??????????????? | | ???????????????????????????????? #??????????????? | | ??????????????? ???????????????# #??????????????? | | ???????????????? ????????????# ""?????????????? | | ?????????????????""####????### ???????????????? | | ??????????????????? #### #????????????????? | | ????????????????????? #?????????????????? | | ??????????????????????? ""[#??????????????????? | | ????????????????????????# ""#???????????????????? | | ????????????????????????# ##??? ???????????????? | | ????????????????????##### ##?? ??????????????? | | ????????????????????# ""## #?????????????? | | ????????????????????# """"" #?????????????? | | ????????????????????## """" ??????????????? | | ?????????????????????#### "## ##???????????????? | | ????????????????????????# ##???????????????????? | | ????????????????????????# |&#???????????#????????? | | ????????????????????????##%R#?????????? #????????? | | ???????????????#??###???#@!*#????????" ?????????? | | ??????????????## ## #??## ##?#####" #??????????? | | ??????????????# #??# #?#"""# ##??????????? | | ??????????????# ### #?#"#""""#??????????? | | ??????????????# ##?#" "# ##??????????? | | ??????????????# #?## ### #??????????? | | ??????????????# ### ####""##""###?????????? | | ??????????????##?????## ###""## #"""#?###?????? | | ????????????????????## # "###### #####?????? | | ????????????????????# & ##????#"#""###????? | | ????????????????????# &%! #????##"#"""##???? | | ????????????????????# ### ##?????####"""#???? | | ????????????????????### ###?# #????????#""#"#???? | | ??????????????????????###???# #???????##"###???? | | ???????????????????????????? #??????#### #????? | | ????????????????????????????# ## ### # "##??# | | ????????????????????????????# # ##??# | | ????????????????????????????# ] # ## ### | | ????????????????????????????""""????# ### | | ??????????????####??????????""""????# ### # | | ??????????????# ##?????????"""#????# ### # | | ??????????????# ##???????????????## ### #### | | ?????????????## ##??????????????# ## ## | | #####?####?### #??????????????# # ### | | #$" ###" ##? ####?????????#### # #?# | +----------------------------------------------------+ Best States ------------- Heat Dissipation 39 Energy Generation 10 Energy Capacity 250 Matter Stores 300 Matter Capacity 300 Sight Range 16 Terrain Scan Density 10 Evasion (%) 50 Recoil Reduction 2 Item Schematics ----------------- None Robot Schematics ------------------ None Fabricated ------------ Nothing Repaired ---------- Beam Cannon | 35% | -10/Materials Alien Tech Used ----------------- None Achievements -------------- None Challenges ------------ None Game ------ Seed ExpertTransportSegregator Manual? 0 Play Time 00:21:05 Cumulative 58.6 hours Start 2025.05.31 @ 17:56:19 End 2025.05.31 @ 18:43:20 Sessions 3 Manual Loads 0 Difficulty Rogue Special Mode None Game No. 60 Rogue 60 Adventurer 0 Explorer 0 Win Type - Total 2 Types 2/0/0/0/0/0/0/0/0/0 Lore% 40 Gallery% 33 Achievement% 34 Wizard Run 0 Options --------- Layout 1 ASCII 0 Keyboard 0 Movement Mouse Keybinds 0 Fullscreen 1 Font 24/Smallcaps Map View 50x35 Zoom Use 0% Tactical HUD 1 Map Filters NONE Filters NONE Steam 1 RUN: d997a902-e238-420c-849c-440f733cb209